bitfinex-derivatives/quotes_BTCF0:USTF0_20250903
["timestamp","ask_amount","ask_price","bid_price","bid_amount"]
[1756904798143,0.004,111350.0,111340.0,1.51390478]
[1756904798348,0.02762,111350.0,111340.0,1.51390478]
[1756904798546,0.02562,111350.0,111340.0,1.51390478]
[1756904799243,0.02662,111350.0,111340.0,1.26390478]
[1756904799449,0.02462,111350.0,111340.0,2.13206478]
[1756904799948,0.02462,111350.0,111340.0,1.26390478]
[1756904800344,0.02462,111350.0,111340.0,0.90523]
[1756904800543,0.47067739,111350.0,111340.0,0.03803]
[1756904800742,1.08147739,111350.0,111340.0,0.02434]
[1756904800950,0.03839,111340.0,111330.0,0.02406]
[1756904801147,0.83172739,111340.0,111330.0,0.02406]
[1756904801346,0.83172739,111340.0,111320.0,0.48272919]
[1756904801347,0.01352,111330.0,111320.0,0.48272919]
[1756904801647,0.39919,111330.0,111320.0,1.37526919]
[1756904801847,0.39919,111330.0,111320.0,0.9427318]
[1756904802247,0.39919,111330.0,111320.0,1.37526919]
[1756904802448,0.40119,111330.0,111320.0,1.37526919]
[1756904802953,0.40419,111330.0,111320.0,1.37526919]
[1756904803150,0.40419,111330.0,111320.0,0.50678919]
[1756904803354,0.40419,111330.0,111320.0,0.0742518]
[1756904803552,0.40419,111330.0,111320.0,0.50678919]
[1756904803752,0.83672739,111330.0,111320.0,0.0742518]
[1756904804655,0.83672739,111330.0,111320.0,0.50678919]
[1756904804958,0.40419,111330.0,111320.0,0.0742518]
[1756904805151,0.40419,111330.0,111320.0,0.50678919]
[1756904805347,0.83672739,111330.0,111320.0,0.03932659]
[1756904805552,0.83672739,111330.0,111320.0,0.01526659]
[1756904805553,1.08672739,111330.0,111320.0,0.01526659]
[1756904805753,1.08672739,111330.0,111310.0,1.74464521]
[1756904805957,0.80685739,111320.0,111310.0,1.74464521]
[1756904806253,0.80685739,111320.0,111310.0,1.32613917]
[1756904806458,0.80685739,111320.0,111310.0,1.75867656]
[1756904806758,0.37432,111320.0,111310.0,1.75867656]
[1756904807057,0.80685739,111320.0,111310.0,1.75867656]
[1756904807654,0.44696649,111360.0,111320.0,0.1286548]
[1756904807655,0.01362,111360.0,111320.0,0.1286548]
[1756904807850,0.03839,111360.0,111350.0,0.39964]
[1756904808045,0.03839,111360.0,111350.0,0.81739739]
[1756904808252,0.47092739,111360.0,111350.0,0.45659739]
[1756904808759,0.03839,111360.0,111350.0,0.81739739]
[1756904808959,0.003,111360.0,111350.0,1.69973739]
[1756904809157,0.005,111360.0,111350.0,1.69973739]
[1756904809455,0.005,111360.0,111350.0,2.21077615]
[1756904809656,0.005,111360.0,111350.0,2.21087615]
[1756904810051,0.005,111360.0,111350.0,2.12108555]
[1756904811354,0.005,111360.0,111350.0,2.21087625]
[1756904811556,0.005,111360.0,111350.0,2.12108555]
[1756904813963,0.005,111360.0,111350.0,1.5173]
[1756904814159,0.005,111360.0,111350.0,1.75892555]
[1756904814460,0.04339,111360.0,111350.0,0.90514]
[1756904814658,0.02987,111360.0,111350.0,0.90514]
[1756904814962,0.02987,111360.0,111350.0,0.03894]
[1756904815155,0.02987,111360.0,111350.0,0.90638]
[1756904815358,0.02987,111360.0,111350.0,1.51016555]
[1756904815753,0.29339,111360.0,111350.0,0.02416]
[1756904815961,0.65419,111360.0,111350.0,0.0001]
[1756904817158,0.65419,111360.0,111320.0,0.05976931]
[1756904817159,0.02487,111330.0,111320.0,0.05976931]
[1756904817460,0.38567,111330.0,111320.0,0.44952931]
[1756904817762,0.39919,111330.0,111320.0,0.04498931]
[1756904818364,0.39919,111330.0,111320.0,0.04598931]
[1756904818564,0.39919,111330.0,111320.0,0.04798931]
[1756904819868,0.40119,111330.0,111320.0,0.04498931]
[1756904820558,0.40019,111330.0,111320.0,0.04498931]
[1756904820759,0.40219,111330.0,111320.0,0.04498931]
[1756904821166,0.03839,111320.0,111310.0,0.46861391]
[1756904821364,0.39919,111320.0,111310.0,1.33453391]
[1756904821663,0.39919,111320.0,111310.0,0.46861391]
[1756904821864,0.39919,111320.0,111310.0,0.38406]
[1756904822861,0.40019,111320.0,111310.0,0.38406]
[1756904823369,0.65019,111320.0,111310.0,0.36]
[1756904823574,1.25397555,111320.0,111310.0,0.28365]
[1756904823965,1.25497555,111320.0,111310.0,0.28365]
[1756904824163,1.27908512,111320.0,111310.0,0.28365]
[1756904824679,1.27908512,111320.0,111290.0,0.01478]
[1756904824965,0.7216,111300.0,111290.0,0.01478]
[1756904825170,0.7216,111300.0,111290.0,0.03884]
[1756904826065,0.7216,111300.0,111290.0,0.01478]
[1756904826667,0.7246,111300.0,111290.0,0.01478]
[1756904827269,0.9746,111300.0,111290.0,0.01478]
[1756904827775,0.9746,111300.0,111290.0,0.01927]
[1756904828365,0.9746,111300.0,111290.0,0.00449]
[1756904828578,1.57838555,111300.0,111290.0,0.00449]
[1756904828779,0.9746,111300.0,111290.0,0.00449]
[1756904829075,0.9746,111300.0,111290.0,0.01934]
[1756904829978,1.84372,111300.0,111290.0,0.01934]
[1756904830378,1.84372,111300.0,111290.0,0.00449]
[1756904831081,2.44750555,111300.0,111290.0,0.00449]
[1756904832076,2.68750555,111300.0,111290.0,0.00449]
[1756904832385,2.44750555,111300.0,111290.0,0.00449]
[1756904832579,2.44578555,111300.0,111290.0,0.01934]
[1756904832774,1.842,111300.0,111290.0,0.01934]
[1756904834782,1.842,111300.0,111290.0,0.00449]
[1756904835284,0.9746,111300.0,111290.0,0.01934]
[1756904835485,1.8412,111300.0,111290.0,0.01934]
[1756904835884,0.9746,111300.0,111290.0,0.01934]
[1756904836082,1.84116,111300.0,111290.0,0.00459]
[1756904836585,2.44494555,111300.0,111290.0,0.00459]
[1756904839189,2.46893365,111300.0,111290.0,0.00459]
[1756904840180,2.83893365,111300.0,111290.0,0.00459]
[1756904840991,1.97237365,111300.0,111290.0,0.00459]
[1756904841386,2.83685365,111300.0,111290.0,0.00459]
[1756904841977,2.83685365,111300.0,111270.0,0.01485]
[1756904842184,0.7216,111280.0,111270.0,0.01485]
[1756904842385,1.6101481,111280.0,111270.0,0.01485]
[1756904843080,1.34937365,111280.0,111270.0,0.0392]
[1756904843282,1.6100281,111280.0,111270.0,0.0392]
[1756904843477,0.7455881,111280.0,111270.0,0.0392]
[1756904843689,1.6096681,111280.0,111270.0,0.0392]
[1756904844191,1.9896681,111280.0,111270.0,0.001]
[1756904844386,1.9596681,111280.0,111270.0,0.001]
[1756904844784,1.6096681,111280.0,111270.0,0.0402]
[1756904845077,2.21345365,111280.0,111270.0,0.0402]
[1756904845290,2.21345365,111280.0,111270.0,0.001]
[1756904845490,2.57345365,111280.0,111270.0,0.001]
[1756904846489,2.21345365,111280.0,111270.0,0.001]
[1756904846679,2.21345365,111280.0,111250.0,0.01485]
[1756904846680,2.87155632,111280.0,111250.0,0.0392]
[1756904846884,0.7216,111260.0,111250.0,0.0392]
[1756904847090,1.6093481,111260.0,111250.0,0.0392]
[1756904847887,1.6093481,111260.0,111250.0,0.0432]
[1756904848992,1.6087481,111260.0,111250.0,0.0432]
[1756904849793,1.6097481,111260.0,111250.0,0.0392]
[1756904850090,1.6096681,111260.0,111250.0,0.0412]
[1756904850494,1.6086681,111260.0,111250.0,0.0412]
[1756904851295,1.6106681,111260.0,111250.0,0.0412]
[1756904851682,1.6106681,111260.0,111250.0,0.0392]
[1756904852095,1.6126681,111260.0,111250.0,0.0392]
[1756904852892,1.6117081,111260.0,111250.0,0.0392]
[1756904853095,0.7495881,111260.0,111250.0,0.2892]
[1756904853297,1.6113881,111260.0,111250.0,0.2892]
[1756904855594,1.6113881,111260.0,111250.0,0.89298555]
[1756904855595,0.0279881,111260.0,111250.0,0.89298555]
[1756904855901,0.3887881,111260.0,111250.0,0.89298555]
[1756904856201,0.3887881,111260.0,111250.0,0.2892]
[1756904856796,0.3887881,111260.0,111250.0,0.0392]
[1756904859389,1.2034681,111260.0,111250.0,0.0392]
[1756904865398,1.2034681,111260.0,111250.0,0.01485]
[1756904865708,1.85535632,111260.0,111250.0,0.0001]
[1756904866002,1.25157077,111260.0,111250.0,0.0001]
[1756904866203,1.25157077,111260.0,111250.0,0.01453]
[1756904866404,1.25157077,111260.0,111250.0,0.03938]
[1756904871404,1.25157077,111260.0,111250.0,0.47267408]
[1756904871608,1.68486485,111260.0,111250.0,0.47267408]
[1756904871999,0.87018485,111260.0,111250.0,0.47267408]
[1756904872203,1.67912218,111260.0,111250.0,0.47267408]
[1756904873408,0.82208218,111260.0,111250.0,0.47267408]
[1756904873602,1.67860218,111260.0,111250.0,0.47267408]
[1756904874413,0.82208218,111260.0,111250.0,0.47267408]
[1756904874708,1.2449081,111260.0,111250.0,0.47267408]
[1756904876320,1.67820218,111260.0,111250.0,0.47267408]
[1756904877212,1.67820218,111260.0,111250.0,0.03938]
[1756904877425,1.67820218,111260.0,111250.0,0.47267408]
[1756904877909,1.67820218,111260.0,111250.0,0.03938]
[1756904878916,1.67820218,111260.0,111250.0,0.47267408]
[1756904879216,1.2437481,111260.0,111250.0,0.47267408]
[1756904879612,1.2437481,111260.0,111250.0,0.03938]
[1756904879915,1.67704218,111260.0,111250.0,0.47267408]
[1756904880309,1.2437481,111260.0,111250.0,0.47267408]
[1756904880509,1.67704218,111260.0,111250.0,0.47267408]
[1756904881218,1.67704218,111260.0,111250.0,0.03938]
[1756904881422,2.11033626,111260.0,111250.0,0.0001]
[1756904883526,1.2437481,111260.0,111250.0,0.0001]
[1756904883834,2.11033626,111260.0,111250.0,0.01453]
[1756904885337,1.2437481,111260.0,111250.0,0.03938]
[1756904885533,2.11033626,111260.0,111250.0,0.03938]
[1756904886538,1.2437481,111260.0,111250.0,0.01453]
[1756904886739,2.11033626,111260.0,111250.0,0.01453]
[1756904887538,2.11033626,111260.0,111250.0,0.03938]
[1756904887836,2.11033626,111260.0,111250.0,0.01453]
[1756904888044,2.10933626,111260.0,111250.0,0.01453]
[1756904888629,2.11133626,111260.0,111250.0,0.01453]
[1756904890135,2.11033626,111260.0,111250.0,0.01453]
[1756904890831,1.2410681,111260.0,111250.0,0.03708]
[1756904891037,1.67388218,111260.0,111250.0,0.47037408]
[1756904892346,1.67088218,111260.0,111250.0,0.47037408]
[1756904892545,1.67188218,111260.0,111250.0,0.47037408]
[1756904893040,0.82008218,111260.0,111250.0,0.47037408]
[1756904893240,0.3867881,111260.0,111250.0,0.47037408]
[1756904893545,1.2380281,111260.0,111250.0,0.47037408]
[1756904893743,1.67132218,111260.0,111250.0,0.47037408]
[1756904894335,1.67032218,111260.0,111250.0,0.47037408]
[1756904894541,1.67132218,111260.0,111250.0,0.47037408]
[1756904895045,1.2374681,111260.0,111250.0,0.47037408]
[1756904896746,1.2374681,111260.0,111250.0,0.03708]
[1756904896943,1.67076218,111260.0,111250.0,0.03708]
[1756904897345,1.67076218,111260.0,111250.0,0.47037408]
[1756904897941,1.67076218,111260.0,111250.0,0.03708]
[1756904898351,2.10405626,111260.0,111250.0,0.03708]
[1756904899551,1.67076218,111260.0,111250.0,0.03708]
[1756904899746,2.10405626,111260.0,111250.0,0.03708]
[1756904900046,1.67076218,111260.0,111250.0,0.01453]
[1756904900645,1.67076218,111260.0,111250.0,0.03708]
[1756904902756,1.2374681,111260.0,111250.0,0.03708]
[1756904902954,1.2374681,111260.0,111250.0,0.47037408]
[1756904903263,0.0259881,111260.0,111250.0,1.51446816]
[1756904903451,0.002,111260.0,111250.0,1.84446816]
[1756904905453,0.002,111260.0,111250.0,2.69370816]
[1756904908354,0.002,111260.0,111250.0,2.69330816]
[1756904909161,0.002,111260.0,111250.0,1.59446816]
[1756904909463,0.002,111260.0,111250.0,2.08206816]
[1756904909660,0.002,111260.0,111250.0,2.44286816]
[1756904910456,0.3628,111260.0,111250.0,0.36708]
[1756904910663,1.04609408,111260.0,111250.0,0.80037408]
[1756904910860,1.04609408,111260.0,111250.0,0.36708]
[1756904911062,1.04609408,111260.0,111250.0,0.80037408]
[1756904911562,0.6128,111260.0,111250.0,0.80037408]
[1756904917053,0.6128,111260.0,111250.0,0.36708]
[1756904917250,0.6128,111260.0,111250.0,0.80037408]
[1756904917854,0.6128,111260.0,111250.0,0.36708]
[1756904918055,0.6128,111260.0,111250.0,1.64709408]
[1756904918864,0.6128,111260.0,111250.0,1.2138]
[1756904919052,0.6128,111260.0,111250.0,1.64709408]
[1756904920652,0.6128,111260.0,111250.0,2.01789408]
[1756904920653,0.002,111260.0,111250.0,2.01789408]
[1756904921256,0.002,111260.0,111250.0,1.65709408]
[1756904923152,0.79609408,111260.0,111250.0,0.37708]
[1756904923355,0.79609408,111260.0,111250.0,0.81037408]
[1756904924070,0.79609408,111260.0,111250.0,0.84037408]
[1756904924260,0.3628,111260.0,111250.0,0.84037408]
[1756904927263,0.002,111260.0,111250.0,0.84037408]
[1756904928363,0.3628,111260.0,111250.0,0.84037408]
[1756904930374,0.002,111260.0,111250.0,0.84037408]
[1756904931273,0.002,111260.0,111250.0,1.69349408]
[1756904931469,0.002,111260.0,111250.0,1.83779476]
[1756904932073,0.002,111260.0,111250.0,1.83759476]
[1756904932267,0.002,111260.0,111250.0,0.98467476]
[1756904932467,0.002,111260.0,111250.0,1.83727476]
[1756904935568,0.002,111260.0,111250.0,2.19807476]
[1756904936274,0.002,111260.0,111250.0,2.44807476]
[1756904937580,0.002,111260.0,111250.0,2.53794846]
[1756904938279,0.002,111260.0,111250.0,2.44807476]
[1756904939179,0.002,111260.0,111250.0,2.19807476]
[1756904939580,0.002,111260.0,111250.0,0.76788]
[1756904939881,0.002,111260.0,111250.0,2.19819476]
[1756904940084,0.002,111260.0,111250.0,1.34547476]
[1756904940379,0.002,111260.0,111250.0,2.19899476]
[1756904940878,0.002,111260.0,111250.0,2.19887476]
[1756904943376,0.002,111260.0,111250.0,2.13887476]
[1756904944683,0.002,111260.0,111250.0,0.70788]
[1756904944886,0.002,111260.0,111250.0,2.13931476]
[1756904946789,0.002,111260.0,111250.0,2.20931476]
[1756904948985,0.002,111260.0,111250.0,1.63172]
[1756904949185,0.002,111260.0,111250.0,2.20931476]
[1756904950290,0.002,111260.0,111250.0,2.45931476]
[1756904954292,0.002,111260.0,111250.0,2.54918696]
[1756904954489,0.0001,111300.0,111290.0,0.03705]
[1756904954694,0.3608,111320.0,111310.0,0.03705]
[1756904954993,0.3851407,111320.0,111310.0,0.03705]
[1756904955387,1.21273546,111320.0,111300.0,0.01418]
[1756904955587,0.93839476,111310.0,111300.0,0.01418]
[1756904955788,1.18839476,111310.0,111300.0,0.01418]
[1756904956595,0.6108,111310.0,111300.0,0.03705]
[1756904957091,0.6108,111310.0,111300.0,0.03805]
[1756904957092,0.6168,111310.0,111300.0,0.03805]
[1756904957697,0.6168,111310.0,111300.0,0.01518]
[1756904958390,0.6228,111310.0,111300.0,0.03805]
[1756904958591,0.6168,111310.0,111300.0,0.03705]
[1756904958893,0.6188,111310.0,111300.0,0.03705]
[1756904959201,1.19639476,111310.0,111300.0,0.01418]
[1756904959392,1.19239476,111310.0,111300.0,0.01418]
[1756904959800,0.6148,111310.0,111300.0,0.03705]
[1756904960101,1.19239476,111310.0,111300.0,0.03705]
[1756904960399,1.19239476,111310.0,111300.0,0.01418]
[1756904960596,0.6148,111310.0,111300.0,0.01418]
[1756904960785,1.19239476,111310.0,111300.0,0.01418]
[1756904961189,0.6148,111310.0,111300.0,0.03705]
[1756904961389,0.6148,111310.0,111300.0,0.61464476]
[1756904961990,0.3648,111310.0,111300.0,0.61464476]
[1756904962794,0.3648,111310.0,111300.0,1.46824476]
[1756904965202,0.004,111310.0,111300.0,1.46824476]
[1756904966003,0.004,111310.0,111300.0,0.61464476]
[1756904968192,0.004,111310.0,111300.0,0.97544476]
[1756904969400,0.004,111310.0,111300.0,1.82824476]
[1756904971604,0.004,111310.0,111300.0,0.39785]
[1756904971903,0.004,111310.0,111300.0,1.83064476]
[1756904972503,0.004,111310.0,111300.0,0.97544476]
[1756904972805,0.004,111310.0,111300.0,1.83040476]
[1756904980002,0.004,111310.0,111300.0,0.97544476]
[1756904980204,0.83159476,111310.0,111300.0,0.03715]
[1756904980501,1.21667067,111310.0,111300.0,0.03715]
[1756904981304,0.63907591,111310.0,111300.0,0.03715]
[1756904983002,0.63907591,111310.0,111300.0,0.61474476]
[1756904983203,0.27827591,111310.0,111300.0,0.61474476]
[1756904984311,0.02827591,111310.0,111300.0,0.61474476]
[1756904988327,0.004,111310.0,111300.0,1.22554476]
[1756904988622,0.004,111310.0,111300.0,1.53554476]
[1756904989221,0.004,111310.0,111300.0,1.62537496]
[1756904989424,0.003,111310.0,111300.0,1.62537496]
[1756904990912,0.003,111310.0,111300.0,1.53554476]
[1756904991519,0.003,111310.0,111300.0,1.62537496]
[1756904991817,0.003,111310.0,111300.0,1.53554476]
[1756904992821,0.003,111310.0,111300.0,2.38438476]
[1756904993422,0.003,111310.0,111300.0,3.10475044]
[1756904995028,0.003,111310.0,111300.0,3.19458054]
[1756904996324,0.003,111310.0,111300.0,3.10475044]
[1756904998428,0.003,111310.0,111300.0,2.25591044]
[1756904998629,0.003,111310.0,111300.0,3.10327044]
[1756904999330,0.003,111310.0,111300.0,2.85327044]
[1756904999530,0.003,111310.0,111300.0,2.94310034]
[1756905000027,0.003,111310.0,111300.0,3.19310034]
[1756905000326,0.0001,111320.0,111310.0,0.089822]
[1756905000531,0.00016,111350.0,111340.0,0.03902]
[1756905000732,0.00016,111350.0,111340.0,0.90432696]
[1756905001231,0.25016,111350.0,111340.0,0.90432696]
[1756905001431,0.27448048,111350.0,111340.0,0.90432696]
[1756905001734,0.27448048,111350.0,111340.0,0.91605836]
[1756905001931,0.27748048,111350.0,111340.0,0.91605836]
[1756905002440,0.25316,111350.0,111340.0,0.91605836]
[1756905002731,0.00316,111350.0,111340.0,0.91605836]
[1756905002935,0.00316,111350.0,111340.0,1.27685836]
[1756905003126,0.00516,111350.0,111340.0,1.27685836]
[1756905005027,0.255,111350.0,111340.0,1.27685836]
[1756905005737,0.25516,111350.0,111340.0,1.27685836]
[1756905005930,0.255,111350.0,111340.0,1.27685836]
[1756905006332,0.005,111350.0,111340.0,1.27685836]
[1756905007630,0.003,111350.0,111340.0,1.27685836]
[1756905007837,0.004,111350.0,111340.0,1.27685836]
[1756905008038,0.004,111350.0,111340.0,2.08951184]
[1756905008534,0.004,111350.0,111340.0,2.09051184]
[1756905008535,0.001,111350.0,111340.0,2.09051184]
[1756905009338,0.001,111350.0,111340.0,1.65785836]
[1756905009638,0.79361348,111380.0,111370.0,0.03897]
[1756905009840,0.81788385,111380.0,111370.0,0.47162348]
[1756905011241,0.82088385,111380.0,111370.0,0.03897]
[1756905011430,0.82388385,111380.0,111370.0,0.03897]
[1756905012240,0.82388385,111380.0,111370.0,0.47162348]
[1756905013338,0.39123037,111380.0,111370.0,0.47162348]
[1756905013551,0.82388385,111380.0,111370.0,0.47162348]
[1756905014239,1.07388385,111380.0,111370.0,0.47162348]
[1756905014941,1.07388385,111380.0,111370.0,0.03897]
[1756905016041,1.07388385,111380.0,111370.0,0.47162348]
[1756905016640,1.50653733,111380.0,111370.0,0.03897]
[1756905016938,1.50653733,111380.0,111360.0,0.01412]
[1756905017144,2.07450696,111370.0,111360.0,0.01412]
[1756905017442,2.09877733,111370.0,111350.0,0.01412]
[1756905017643,0.79361348,111360.0,111350.0,0.03897]
[1756905017844,0.81788385,111360.0,111350.0,0.03897]
[1756905019948,0.81888385,111360.0,111350.0,0.03897]
[1756905020149,0.81888385,111360.0,111350.0,0.03907]
[1756905020446,0.81888385,111360.0,111350.0,0.47172348]
[1756905020649,0.38623037,111360.0,111350.0,0.47172348]
[1756905021638,0.81888385,111360.0,111350.0,0.03907]
[1756905021947,0.81888385,111360.0,111350.0,0.47172348]
[1756905022747,0.38623037,111360.0,111350.0,0.47172348]
[1756905023049,0.81888385,111360.0,111350.0,0.47172348]
[1756905023652,0.38623037,111360.0,111350.0,0.47172348]
[1756905023951,0.0254554,111360.0,111350.0,0.47172348]
[1756905024252,0.00116,111360.0,111350.0,0.47172348]
[1756905026449,0.02540156,111360.0,111350.0,0.47172348]
[1756905026945,0.00116,111360.0,111350.0,0.47172348]
[1756905027650,0.001,111360.0,111350.0,0.47172348]
[1756905027847,0.001,111360.0,111350.0,1.31860348]
[1756905028352,0.00116,111360.0,111350.0,0.47172348]
[1756905029349,0.00116,111360.0,111350.0,0.03907]
[1756905029648,0.001,111360.0,111350.0,0.47172348]
[1756905029947,0.001,111360.0,111350.0,0.72172348]
[1756905031951,0.00116,111360.0,111350.0,1.56740348]
[1756905032353,0.02544341,111360.0,111350.0,1.56740348]
[1756905033154,0.02528341,111360.0,111350.0,1.56740348]
[1756905037559,0.02528341,111360.0,111350.0,1.13475]
[1756905037746,0.02528341,111360.0,111350.0,1.56740348]
[1756905038054,0.02544341,111360.0,111350.0,1.13323]
[1756905038253,0.02544341,111360.0,111350.0,0.72172348]
[1756905038552,0.02544341,111360.0,111350.0,0.28907]
[1756905038848,0.45809689,111360.0,111350.0,1.56676348]
[1756905039847,0.02544341,111360.0,111350.0,1.56676348]
[1756905040754,0.02528341,111360.0,111350.0,1.56676348]
[1756905041150,0.02528341,111360.0,111350.0,1.56624348]
[1756905043357,0.02528341,111360.0,111350.0,1.99889696]
[1756905043763,0.02528341,111360.0,111350.0,2.36969696]
[1756905043949,0.001,111360.0,111350.0,2.35969696]
[1756905044150,0.001,111360.0,111350.0,2.70969696]
[1756905048062,0.001,111360.0,111350.0,1.86517696]
[1756905048270,0.001,111360.0,111350.0,2.71285696]
[1756905053476,0.001,111360.0,111350.0,2.42389909]
[1756905054374,0.001,111360.0,111350.0,1.32621909]
[1756905054574,0.001,111360.0,111350.0,2.17233909]
[1756905054872,0.001,111360.0,111350.0,2.17205909]
[1756905056273,0.001,111360.0,111350.0,1.32621909]
[1756905056880,0.001,111360.0,111350.0,2.17169909]
[1756905057677,0.36196,111360.0,111350.0,1.23447]
[1756905057981,0.61196,111360.0,111350.0,1.19419]
[1756905058382,0.61196,111360.0,111350.0,1.77053909]
[1756905059278,0.36196,111360.0,111350.0,1.19419]
[1756905060180,0.36196,111360.0,111350.0,1.77053909]
[1756905060785,0.3618,111360.0,111350.0,1.77053909]
[1756905060984,0.001,111360.0,111350.0,1.19419]
[1756905061285,0.001,111360.0,111350.0,1.77053909]
[1756905061486,0.00116,111360.0,111350.0,0.88363]
[1756905061783,0.61196,111360.0,111350.0,0.88347]
[1756905062085,0.61196,111360.0,111350.0,1.23347]
[1756905063085,0.61196,111360.0,111350.0,0.38907]
[1756905063283,1.18830909,111360.0,111350.0,0.10907]
[1756905063591,1.21256589,111360.0,111350.0,0.10907]
[1756905064087,0.6362168,111360.0,111350.0,0.10907]
[1756905064389,1.21256589,111360.0,111350.0,0.10907]
[1756905067293,2.05680589,111360.0,111350.0,0.10907]
[1756905068287,2.05680589,111360.0,111350.0,0.03907]
[1756905070295,2.07680589,111360.0,111350.0,0.03907]
[1756905072495,2.07680589,111360.0,111350.0,0.01422]
[1756905073096,2.07680589,111360.0,111350.0,0.03797]
[1756905073296,2.05254909,111360.0,111350.0,0.03797]
[1756905073597,2.03254909,111360.0,111350.0,0.03797]
[1756905073799,0.61196,111360.0,111350.0,0.03797]
[1756905073991,1.4562,111360.0,111350.0,0.03797]
[1756905074589,1.23043191,111360.0,111350.0,0.61431909]
[1756905075110,1.23043191,111360.0,111350.0,0.03797]
[1756905075602,1.806781,111360.0,111350.0,0.03797]
[1756905075902,1.23043191,111360.0,111350.0,0.03797]
[1756905078495,0.38619191,111360.0,111350.0,0.03797]
[1756905078696,1.23043191,111360.0,111350.0,0.03797]
[1756905080004,1.2062,111360.0,111350.0,0.03797]
[1756905080402,1.23043273,111360.0,111350.0,0.03797]
[1756905080598,1.2062,111360.0,111350.0,0.03797]
[1756905083899,1.23044356,111360.0,111350.0,0.03797]
[1756905085811,1.23044356,111360.0,111350.0,0.01422]
[1756905086212,1.80679265,111360.0,111350.0,0.01422]
[1756905086405,1.80679265,111360.0,111350.0,0.03797]
[1756905089006,1.80671265,111360.0,111350.0,0.03797]
[1756905089206,1.23036356,111360.0,111350.0,0.03797]
[1756905094915,1.80671265,111360.0,111350.0,0.03797]
[1756905095711,1.80671265,111360.0,111350.0,0.0001]
[1756905099427,1.23012356,111360.0,111350.0,0.03867]
[1756905099613,1.80647265,111360.0,111350.0,0.03867]
[1756905100823,1.80647265,111360.0,111350.0,0.0001]
[1756905101022,1.80647265,111360.0,111350.0,0.01492]
[1756905101214,1.80647265,111360.0,111350.0,0.03916]
[1756905102822,0.96255265,111360.0,111350.0,0.03916]
[1756905103318,0.02540356,111360.0,111350.0,0.69550909]
[1756905103518,0.00116,111360.0,111350.0,1.05630909]
[1756905103719,0.00116,111360.0,111350.0,1.50630909]
[1756905104922,0.00116,111360.0,111350.0,0.92996]
[1756905105128,0.00116,111360.0,111350.0,1.50630909]
[1756905105322,0.00116,111360.0,111350.0,1.14550909]
[1756905105517,0.00116,111360.0,111350.0,0.56916]
[1756905105718,0.36196,111360.0,111350.0,0.56916]
[1756905106325,0.93830909,111360.0,111350.0,0.31916]
[1756905106825,0.36196,111360.0,111350.0,0.31916]
[1756905108224,0.38624717,111360.0,111350.0,0.31916]
[1756905109329,0.36196,111360.0,111350.0,0.31916]
[1756905110827,0.38624577,111360.0,111350.0,0.31916]
[1756905111522,0.36196,111360.0,111350.0,0.31916]
[1756905112226,0.3862457,111360.0,111350.0,0.89550909]
[1756905112830,0.0254457,111360.0,111350.0,0.89550909]
[1756905113224,0.3862457,111360.0,111350.0,0.31916]
[1756905113532,0.81870964,111360.0,111350.0,0.75162394]
[1756905114232,0.81871863,111360.0,111350.0,0.75162394]
[1756905117436,0.38625469,111360.0,111350.0,0.75162394]
[1756905117638,0.81871863,111360.0,111350.0,0.75162394]
[1756905117829,0.38625469,111360.0,111350.0,0.75162394]
[1756905118030,0.02529469,111360.0,111350.0,2.38840788]
[1756905118231,0.001,111360.0,111350.0,2.38840788]
[1756905118433,0.001,111360.0,111350.0,1.95594394]
[1756905119742,0.001,111360.0,111350.0,1.59514394]
[1756905120043,0.001,111360.0,111350.0,2.02752788]
[1756905120336,0.02536022,111360.0,111350.0,2.38832788]
[1756905120733,0.02536022,111360.0,111350.0,2.63832788]
[1756905121034,0.001,111360.0,111350.0,2.63832788]
[1756905122840,0.001,111360.0,111350.0,2.72811798]
[1756905123237,0.001,111360.0,111350.0,3.16058192]
[1756905123440,0.001,111360.0,111350.0,2.72811798]
[1756905127743,0.001,111360.0,111350.0,2.72783798]
[1756905130052,0.001,111360.0,111350.0,1.79488788]
[1756905130250,0.001,111360.0,111350.0,2.63796788]
[1756905131547,0.001,111360.0,111350.0,2.63792788]
[1756905131753,0.001,111360.0,111350.0,2.72771818]
[1756905132851,0.001,111360.0,111350.0,1.79488788]
[1756905133047,0.001,111360.0,111350.0,2.63788788]
[1756905133248,0.001,111360.0,111350.0,0.92996]
[1756905133553,0.001,111360.0,111350.0,2.21918394]
[1756905134257,0.001,111360.0,111350.0,1.37622394]
[1756905134445,0.001,111360.0,111350.0,2.21918394]
[1756905134953,0.001,111360.0,111350.0,1.37622394]
[1756905135356,0.001,111360.0,111350.0,2.21914394]
[1756905136657,0.001,111360.0,111350.0,2.65160788]
[1756905137154,0.001,111360.0,111350.0,1.80868788]
[1756905137356,0.001,111360.0,111350.0,2.65156788]
[1756905139257,0.001,111360.0,111350.0,2.38776788]
[1756905143357,0.001,111360.0,111350.0,1.52284]
[1756905143561,0.001,111360.0,111350.0,2.38776788]
[1756905145653,0.001,111360.0,111350.0,1.54488788]
[1756905145960,0.001,111360.0,111350.0,2.47739818]
[1756905148564,0.001,111360.0,111350.0,2.72739818]
[1756905149258,0.001,111360.0,111350.0,1.54488788]
[1756905149464,0.001,111360.0,111350.0,1.95498394]
[1756905150363,0.001,111360.0,111350.0,1.95494394]
[1756905150663,0.001,111360.0,111350.0,1.95694394]
[1756905151056,0.001,111360.0,111350.0,1.11442394]
[1756905151360,0.3609,111370.0,111350.0,2.38940788]
[1756905151556,0.0001,111370.0,111360.0,0.90260788]
[1756905151760,0.36106,111380.0,111370.0,0.03768]
[1756905152062,0.00016,111380.0,111370.0,0.47024394]
[1756905152271,0.385324,111380.0,111370.0,1.32272394]
[1756905152564,0.385324,111380.0,111370.0,0.89026]
[1756905152762,0.385324,111380.0,111370.0,1.32272394]
[1756905152952,0.81778794,111380.0,111370.0,1.32272394]
[1756905153359,0.81878794,111380.0,111370.0,0.04778]
[1756905153662,0.81878794,111380.0,111370.0,0.48024394]
[1756905155870,0.81878794,111380.0,111370.0,0.04778]